Cogmind - Beta 16.1 @@@ ROGUE MODE // 2026.03.16 @ 11:53:03 Player: Ragnakor Result: Destroyed by G-47 Trooper with Particle Gun Performance ------------- Evolutions (1) 500 Regions Visited (2) 400 Robots Destroyed (20) 100 Value Destroyed (521) 521 Prototype IDs (0) 0 Alien Tech Used (0) 0 Bonus (0) 0 TOTAL SCORE: 1521 Bonus ------- None Cogmind --------- Core Integrity 0/400 Matter 286/300 Energy 39/100 System Corruption 0% Temperature Cool (65) Movement Rolling (80) Location -9/Materials Parts ------- > --- POWER (1) -------- (None) > --- PROPULSION (4) --- Wheel > --- UTILITY (2) ------ Improved Terrain Scanner Improved Targeting Computer > --- WEAPON (2) ------- Spread Laser > --- INVENTORY (5) ---- Light Ion Engine Light Treads Wheel Terrain Scanner Peak State ------------ > --- POWER ------------ Improved Ion Engine > --- PROPULSION ------- Aluminum Leg Aluminum Leg Aluminum Leg Aluminum Leg > --- UTILITY ---------- Small Storage Unit Visual Processing Unit > --- WEAPON ----------- Assault Rifle > --- INVENTORY -------- Light Treads Wheel Terrain Scanner [Rating: 10] Favorites ----------- Power Ion Engine Engine Ion Engine Propulsion Aluminum Leg Treads Light Treads Leg Aluminum Leg Wheel Wheel Flight Unit VTOL Module Utility Small Storage Unit Device Structural Scanner Storage Small Storage Unit Processor Visual Processing Unit Weapon EM Pulse Gun Energy Gun EM Pulse Gun Ballistic Gun Assault Rifle Ballistic Cannon Light Cannon Build | -11 -10 -9 ------- Run | Yrd Mat Mat Slots Evolved 2 | . . 2 Power . | . . . Propulsion 2 | . . 2 Utility . | . . . Weapon . | . . . Parts Attached 22 | 6 4 12 Power 3 | 1 . 2 Engine 3 | 1 . 2 Core . | . . . Reactor . | . . . Propulsion 9 | 2 1 6 Treads 1 | . . 1 Leg 5 | 2 1 2 Wheel 2 | . . 2 Hover . | . . . Flight 1 | . . 1 Utility 5 | 1 1 3 Device 2 | . 1 1 Storage 1 | 1 . . Processor 2 | . . 2 Hackware . | . . . Protection . | . . . Artifact . | . . . Weapon 5 | 2 2 1 Energy Gun 3 | 2 . 1 Energy Cannon . | . . . Ballistic Gun 1 | . 1 . Ballistic Cannon 1 | . 1 . Launcher . | . . . Special Weapon . | . . . Impact Weapon . | . . . Slashing Weapon . | . . . Piercing Weapon . | . . . Special Melee Weapon . | . . . Unidentified Prototypes . | . . . Parts Lost 9 | . 1 8 Power 1 | . . 1 Propulsion 5 | . . 5 Utility 1 | . . 1 Weapon 2 | . 1 1 Highest Loss Streak 3 | . 1 3 To Critical Strikes . | . . . Average Backups 2 | 1 2 2 Power . | . . . Propulsion 1 | . 1 1 Utility . | . . 1 Weapon . | . . . Tool/Special . | . . . Unused Backups 1 | . . 1 Power . | . . . Propulsion . | . . . Utility 1 | . . 1 Weapon . | . . . Tool/Special . | . . . Average Slot Usage (%) 84 | . 97 67 Engine 12 | . 14 9 Leg 25 | . 28 21 Wheel 1 | . . 3 Device 7 | . 11 1 Storage 11 | . 14 8 Processor 1 | . . 4 Energy Gun 6 | . 9 1 Ballistic Gun 7 | . 6 8 Ballistic Cannon 8 | . 11 4 Peak Build Rating 10 | 6 7 10 Average Rating 6 | 5 6 7 On Entrance 4 | . 6 7 Avg Prop Armor Cover (%) 8 | . . 8 Naked Turns 3 | . . 3 Heaviest Build 17 | 14 16 17 Greatest Support 40 | 20 20 40 Greatest Overweight (x) 2 | 1 . 2 Average Overweight (x) . | . . . Largest Inventory Capacity 8 | 8 8 8 Average Capacity 7 | 7 8 7 Most Carried 5 | 2 3 5 Average Carried 2 | 1 2 2 Final Capacity 8 | 8 8 5 Final Carried 4 | 2 3 4 Class Distribution -------------------- 90% | Mutant 9% | Scavenger-Mutant Dominant Class ---------------- Mutant | -10/Materials Mutant | -9/Materials Resources | -11 -10 -9 ----------- Run | Yrd Mat Mat Matter Collected 720 | 260 148 312 Remotely . | . . . Salvage Created 697 | 105 261 331 Parts 34 | 7 12 15 Haulers Intercepted 1 | . 1 . Recyclers Shooed . | . . . Parts Field Recycled . | . . . Retrieved Matter . | . . . Parts Self-Destructed . | . . . Prevented . | . . . Parts Restored . | . . . Kills | -11 -10 -9 ------- Run | Yrd Mat Mat Combat Hostiles Destroyed 11 | . 5 6 Guns 7 | . 3 4 Cannons 4 | . 2 2 Classes Destroyed 10 | 3 3 4 Worker 1 | 1 . . Builder 1 | . . 1 Tunneler 2 | 1 . 1 Hauler 1 | . 1 . Recycler 2 | 1 . 1 Operator 1 | . 1 . Watcher 1 | . . 1 Grunt 8 | . 5 3 Duelist 1 | . . 1 Sentry 2 | . . 2 Best Kill Streak 3 | 3 3 3 Combat Bots Only 3 | . 3 2 Max Kills in Single Turn 1 | 1 1 1 Gunslinging . | . . . Exploded . | . . . Melee . | . . . Uniques/NPCs Destroyed . | . . . Combat | -11 -10 -9 -------- Run | Yrd Mat Mat Hostile Shots Fired 132 | . 41 91 Missed 41 | . 14 27 Hits 91 | . 27 64 Melee 15 | . . 15 Projectile 76 | . 27 49 Critical Strikes 3 | . . 3 Damage Taken 1476 | 30 326 1120 Core 528 | . 117 411 Absorbed by Shields . | . . . Core Remaining (%) 76 | 100 53 . Volleys Fired 72 | 10 33 29 Largest 2 | 2 2 2 Hottest 80 | 80 70 65 Shots Fired 127 | 20 62 45 Gun 78 | 20 29 29 Cannon 49 | . 33 16 Launcher . | . . . Special . | . . . Kinetic 81 | . 42 39 Thermal 6 | . . 6 Explosive . | . . . Electromagnetic 40 | 20 20 . Robot Hit Streak 10 | 8 10 10 Robot Miss Streak 4 | 1 4 4 Penetration Max . | . . . Secondary Targets . | . . . Shots Hit Robots 63 | 9 25 29 Core Hits 40 | 3 10 27 Critical Kills . | . . . Critical Parts Destroyed . | . . . Critical Strikes 1 | . 1 . Blast 1 | . 1 . Melee Attacks . | . . . Impact . | . . . Slashing . | . . . Piercing . | . . . Sneak Attacks . | . . . Combat Hostiles . | . . . Follow-up Attacks . | . . . Damage Inflicted 1183 | 190 457 536 Guns 602 | 158 169 275 Cannons 432 | . 231 201 Explosions 79 | 32 47 . Melee . | . . . Ramming 70 | . 10 60 Kinetic 643 | . 268 375 Thermal 180 | 32 47 101 Explosive . | . . . Electromagnetic 290 | 158 132 . Impact . | . . . Slashing . | . . . Piercing . | . . . Highest Corruption 3 | . 3 . Average Corruption 1 | . 1 . Corruption Purged . | . . . Corruption Blocked . | . . . Effects 5 | . 5 . Matter Fused 3 | . 3 . Parts Fused 1 | . 1 . Data Loss (minor) 1 | . 1 . Overload Shots . | . . . Overflow Damage . | . . . Projectiles . | . . . Explosions . | . . . Melee . | . . . Knockbacks 4 | . 2 2 Impact 1 | . . 1 Kinetic 3 | . 2 1 Secondary . | . . . Self-Inflicted Damage 68 | 30 37 1 Shots 2 | 1 1 . Rammed 2 | . . 2 Targets Rammed 27 | . 3 24 Kicked 25 | . 3 22 Crushed . | . . . Highest Temperature 177 | 66 177 56 Average Temperature 44 | 24 60 14 Received Heat Transfer 402 | . 138 264 Siege Activations . | . . . Martial Activations . | . . . Shielding Activations . | . . . Robots Disrupted . | . . . Combat Hostiles . | . . . Robots Corrupted . | . . . Combat Hostiles . | . . . Parts Fried 1 | . 1 . Impact Corruptions . | . . . Robots Melted . | . . . Combat Hostiles . | . . . Parts Melted . | . . . Heat Transferred 225 | 50 50 125 Parts Sabotaged . | . . . Parts Stolen . | . . . Parts Stripped . | . . . Power Chain Reactions 2 | 1 1 . Alert | -11 -10 -9 ------- Run | Yrd Mat Mat Maximum Alert Level . | . . . Low Security (%) 100 | 100 100 100 Level 1 . | . . . Level 2 . | . . . Level 3 . | . . . Level 4 . | . . . Level 5 . | . . . High Security . | . . . Max Security . | . . . Peak Influence 75 | 10 75 75 Initial . | . . . Average 22 | . 22 29 Influence Increases 442 | 15 184 243 Destroy 0b10 Robot/C 220 | . 100 120 Destroy 0b10 Robot/NC 45 | 15 10 20 Destroy Leader 54 | . 12 42 Successful Hack 29 | . 29 . Disable Machine 30 | . 30 . Destroy Structure 4 | . 3 1 Lose Combat Pursuer 60 | . . 60 Influence Decreases 367 | 15 184 168 Time Decay 309 | 15 174 120 Lost Part 58 | . 10 48 Squads Dispatched 4 | . 2 2 Investigation 2 | . 1 1 Extermination . | . . . Reinforcement 2 | . 1 1 Assault . | . . . Garrison . | . . . Intercept . | . . . Searches Triggered . | . . . Construction Impeded . | . . . Haulers Reinforced . | . . . Active Scanning Responses . | . . . Cargo Convoy Interrupts . | . . . Stealth | -11 -10 -9 --------- Run | Yrd Mat Mat Distress Signals 4 | . 2 2 Communications Jammed . | . . . Distress Signals . | . . . Times Spotted 32 | . 14 18 Peak Tracking Total 8 | . 4 8 Tactical Retreats 2 | . . 2 Traps | -11 -10 -9 ------- Run | Yrd Mat Mat Traps Triggered 2 | . 2 . Indirectly . | . . . Trap Hack Attempts . | . . . Triggered . | . . . Disarmed . | . . . Reprogrammed . | . . . Reused . | . . . Traps Extracted . | . . . Installed . | . . . Triggered . | . . . Machines | -11 -10 -9 ---------- Run | Yrd Mat Mat Machines Disabled 2 | . 2 . Max in Single Turn 2 | . 2 . Machines Repaired . | . . . Machines Dismantled . | . . . Machines Sabotaged . | . . . Overloaded Fab Kills . | . . . Hacking | -11 -10 -9 --------- Run | Yrd Mat Mat Machines Accessed 9 | . 5 4 Terminals 6 | . 4 2 Fabricators . | . . . Repair Stations 1 | . 1 . Recycling Units 1 | . . 1 Scanalyzers 1 | . . 1 Garrison Access . | . . . Total Hacks 31 | . 17 14 Successful 18 | . 12 6 Failed 12 | . 5 7 Catastrophic 3 | . 1 2 Database Lockouts 1 | . . 1 Manual 18 | . 13 5 Terminals 23 | . 16 7 Fabricators . | . . . Repair Stations 1 | . 1 . Recycling Units 1 | . . 1 Scanalyzers 6 | . . 6 Garrison Access . | . . . Terminal Hacks 4 | . 4 . Terminal Index 1 | . 1 . Patrol Status 1 | . 1 . Hauler Manifests 1 | . 1 . Registered Components 1 | . 1 . Fabricator Hacks . | . . . Repair Station Hacks . | . . . Recycling Unit Hacks 1 | . . 1 Report Inventory 1 | . . 1 Scanalyzer 3 | . . 3 Insert Component 1 | . . 1 Analyze 1 | . . 1 Retrieve Study 1 | . . 1 Garrison Access Hacks . | . . . Unauthorized Hacks 10 | . 8 2 Terminals 8 | . 7 1 Assimilate 2 | . 2 . Botnet 5 | . 4 1 Operators 1 | . 1 . Fabricators . | . . . Repair Stations 1 | . 1 . Mechanics 1 | . 1 . Recycling Units . | . . . Scanalyzers 1 | . . 1 Researchers 1 | . . 1 Garrison Access . | . . . Data Cores Recovered . | . . . Used . | . . . Hacking Detections 7 | . 4 3 Full Trace Events 3 | . 1 2 Feedback Events . | . . . Feedback Blocked . | . . . Robot Schematics Acquired . | . . . Robots Built . | . . . Authchips . | . . . Time . | . . . Total Robot Build Rating . | . . . Part Schematics Acquired 1 | . . 1 Parts Built . | . . . Authchips . | . . . Time . | . . . Total Part Build Rating . | . . . Part Studies Acquired 1 | . . 1 Parts Repaired . | . . . Time . | . . . Parts Recycled . | . . . Recycled Matter . | . . . Retrieved Matter . | . . . Retrieved Components . | . . . Parts Scanalyzed 1 | . . 1 Part Schematics Acquired 1 | . . 1 Parts Damaged . | . . . Bothacking | -11 -10 -9 ------------ Run | Yrd Mat Mat Used RIF Installer . | . . . Robots Hacked . | . . . Non-combat . | . . . Combat . | . . . Robot Hacks Applied . | . . . Relay Couplers Released . | . . . Fabnet Peak Effective % . | . . . Robots Rewired . | . . . Allies Hacked . | . . . Hacks Repelled . | . . . Allies | -11 -10 -9 -------- Run | Yrd Mat Mat Total Allies . | . . . Largest Group . | . . . Highest-Rated Group . | . . . Highest-Rated Ally . | . . . Total Orders . | . . . Ally Attacks . | . . . Total Damage . | . . . Kills . | . . . Allies Corrupted . | . . . Allies Melted . | . . . Intel | -11 -10 -9 ------- Run | Yrd Mat Mat Active Infowar (turns) 575 | . 413 162 Optics 119 | . . 119 Terrain 15 | . . 15 Structural 441 | . 413 28 Robot Analysis Total . | . . . Derelict Logs Recovered . | . . . Drone Launches . | . . . Drone Recoveries . | . . . Exploration | -11 -10 -9 ------------- Run | Yrd Mat Mat Turns Passed 972 | 134 485 353 Spaces Moved 614 | 82 317 215 Core 101 | 17 . 84 Treads 12 | . . 12 Legs 495 | 65 317 113 Wheels 6 | . . 6 Hover . | . . . Flight . | . . . Fastest Speed 50 | 50 120 50 Average Speed 110 | 114 120 94 Slowest Speed 190 | 190 120 190 Overloaded Moves . | . . . Propulsion Burnouts . | . . . Robots Hopped . | . . . Potential Cave-ins . | . . . Cave-ins Triggered . | . . . Exploration Rate (%) 32 | 5 63 30 Regions Visited 2 Branch Regions . Pre-discovered Areas . | . . . Known Exits Taken . | . . . Unknown Exits Taken 2 | 1 1 . Scrap Searched . | . . . Spaces Dug . | . . . Terrain Destroyed 3 | . 3 . Melee . | . . . Projectile . | . . . AOE 3 | . 3 . Terrain Rammed . | . . . Walls Destroyed . | . . . Machines Disabled . | . . . Actions | -11 -10 -9 --------- Run | Yrd Mat Mat Total 760 | 99 357 304 Wait 15 | . . 15 Move 612 | 81 316 215 Hop . | . . . Pick Up 3 | 2 1 . Fast Attach 16 | 6 1 9 Attach 6 | . 1 5 Detach 4 | . . 4 Swap 5 | . 2 3 Drop . | . . . Fire 72 | 10 33 29 Melee . | . . . Ram 2 | . . 2 Kick 25 | . 3 22 Crush . | . . . Escape Stasis . | . . . Rewire . | . . . Trap . | . . . Miscellaneous . | . . . Route ------- -11/Scrapyard -10/Materials (discovered 3 exits: *Mat x2 / [*Min]) -9/Materials (discovered 1 exit: [*Min]) History --------- Turn | Location | Event 9 | -11/Scrapyard | Discovered new exit (range 15) 135 | -11/Scrapyard | Entered Materials 203 | -10/Materials | Discovered new exit (range 14) 318 | -10/Materials | Build established: Mutant 450 | -10/Materials | Discovered new exit (range 9) 553 | -10/Materials | Discovered new exit (range 11) 620 | -10/Materials | Entered another Materials area 620 | -9/Materials | Evolved 2 slots: Propulsion x2 640 | -9/Materials | Discovered new exit (range 16) 725 | -9/Materials | Lost 3 parts (2n1u) 782 | -9/Materials | Central database locked down 889 | -9/Materials | Core integrity fell below 50% 904 | -9/Materials | Core integrity fell below 20% 904 | -9/Materials | Released all parts (3) 930 | -9/Materials | Lost 3 parts (1p2n) 973 | -9/Materials | Destroyed by G-47 Trooper with Particle Gun Last Messages --------------- 00904_ Released Sml. Storage Unit. 00904_ Released Assault Rifle+. 00907_ Acquired Lgt. Ion Engine. 00915_ Connecting with Terminal... >>Trojan(Botnet) Trojan loaded successfully. Testing... Terminal linked with 0 systems. Awaiting botnet instructions. 00921_ Connecting with Terminal... 00933_ Acquired Spread Laser. 00941_ T-07 Excavator is excavating. 00945_ Acquired Imp. Targeting Computer. 00949_ T-07 Excavator is excavating. 00952_ T-07 Excavator destroyed. 00955_ Acquired Wheel. 00956_ Acquired 15 matter. 00958_ Acquired Imp. Terrain Scanner. 00972_ L-31 Rogue destroyed. 00973_ Acquired 27 matter. Map ----- +----------------------------------------------------+ | | | | | | | | | | | | | | | | | | | | | | | | | | | | | | | ???????###############???????? | | ???????? ???????? | | ????????# """ """ """ #??????? | | ????????# """ """ """ #??????? | | ????????# """ """ """ ####???? | | ######### ## ###?? | | # [ [## #?? | | #######+#########!##?? | | #????# gg#??? | | ###### ########/###? | | "" "" + #????#?#@ #? | | ""S"" ###### #??????# !#? | | """" #????# #??????# #? | | #????# #??????#! #? | | ###+########## #??????# #? | | ?????# #? | | ?????# #? | | ????#####? | | ##T############+#####?#??????? | | ?###?????????????????????????? | | #????????????????????????????? | | #????????????????????????????? | | #????????????????????????????? | | ????????????????????????????? | | ##???????????????????????????? | | #????????????????????????????? | | #????????????????????????????? | | #????????????????????????????? | | ?????????????????????????????? | | ?????????????????????????????? | | ?????????????????????????????? | | ?????????????????????????????? | | ?????????????????????????????? | | ?????????????????????????????? | | ?????????????????????????????? | +----------------------------------------------------+ Best States ------------- Heat Dissipation 28 Energy Generation 12 Energy Capacity 265 Matter Stores 300 Matter Capacity 300 Sight Range 18 Terrain Scan Range 16 Terrain Scan Density 10 Evasion (%) 55 Targeting Accuracy 6 Recoil Reduction 1 Item Schematics ----------------- Terrain Scanner | -9/Materials | Scanalyzed Robot Schematics ------------------ None Fabricated ------------ Nothing Repaired ---------- Nothing Studied --------- Assault Rifle | -9/Materials | Hacked Alien Tech Used ----------------- None Achievements -------------- None Challenges ------------ None Game ------ Seed PotentialLinearWand Manual? 0 Play Time 00:14:26 Cumulative 31.5 hours Start 2026.03.16 @ 11:36:41 End 2026.03.16 @ 11:53:03 Sessions 1 Manual Loads 0 Difficulty Rogue Special Mode None Game No. 58 Rogue 58 Adventurer 0 Explorer 0 Win Type - Total 0 Types 0/0/0/0/0/0/0/0/0/0 Lore% 29 Gallery% 25 Achievement% 22 Wizard Run 0 Options --------- Layout 1 ASCII 0 Keyboard 0 Movement Numpad Keybinds 0 Fullscreen 1 Font 24/Smallcaps Map View 50x35 Zoom Use 0% Tactical HUD 1 Map Filters NONE Filters NONE Steam 1 RUN: a076fcd5-50fa-48a1-9cb6-a7dfc3004ee8